Cogmind - Beta 15 @@@ ROGUE MODE // 2025.09.15 @ 11:34:26 Player: cingulata Result: Destroyed by P-80 Master with Gamma Rifle Performance ------------- Evolutions (8) 4000 Regions Visited (21) 4200 Robots Destroyed (283) 1415 Value Destroyed (15178) 15178 Prototype IDs (50) 1000 Alien Tech Used (0) 0 Bonus (12793) 12793 TOTAL SCORE: 38586 Bonus ------- Triggered High Security 500 High Alert Combat Kills 4444 Follower Combat Kills 2367 Entered Garrisons 1200 Used RIF Installer 4000 Aligned with FarCom 300 Friendly Fire -18 Cogmind --------- Core Integrity 0/1450 Matter 290/300 Energy 100/100 System Corruption 15% Temperature Hot (278) Movement Core (50) Location -2/Research Parts ------- > --- POWER (2) -------- (None) > --- PROPULSION (6) --- Myomer Leg > --- UTILITY (12) ----- Core Analyzer Advanced Hacking Suite System Shield > --- WEAPON (3) ------- (None) > --- INVENTORY (5) ---- Antigrav System Improved Signal Interpreter Experimental Signal Interpreter Point Defense System Improved Remote Datajack Peak State ------------ > --- POWER ------------ Neutrino Core Neutrino Core > --- PROPULSION ------- Myomer Leg Wheel Wheel Improved Diametric Drive Improved Diametric Drive > --- UTILITY ---------- Advanced Cooling System Medium Storage Unit Huge Storage Unit Advanced Targeting Computer Core Analyzer Improved Weapon Cycler Advanced Transmission Jammer Improved Phase Shifter Advanced Hacking Suite Advanced Hacking Suite System Shield Component Analysis Suite > --- WEAPON ----------- Quantum Rifle Quantum Rifle Quantum Rifle > --- INVENTORY -------- Antigrav System High-capacity Battery Compact Battery Improved Signal Interpreter Experimental Signal Interpreter Advanced Recoil Stabilizer Improved Hardlight Generator Improved Shield Generator Advanced Force Field Point Defense System Improved Dynamic Insulation System Improved Recalibrator Improved Recalibrator Phase Gun Compact Ion Cannon Heavy Phase Cannon Nova Cannon Nova Cannon High-powered Shotgun Coil Gun Improved Remote Datajack Plasma Lance [Rating: 129] Favorites ----------- Power Neutrino Core Engine Light Angular Momentum Engine Power Core Neutrino Core Reactor Light Antimatter Reactor Propulsion Light Treads Treads Light Treads Leg Carbon-fiber Leg Wheel Wheel Hover Unit Antigrav System Flight Unit Improved Diametric Drive Utility Huge Storage Unit Device Advanced Heat Sink Storage Huge Storage Unit Processor Advanced Targeting Computer Hackware Relay Coupler [Sentry] Protection Improved Medium Armor Plating Weapon Compact Ion Cannon Energy Gun Medium Laser Energy Cannon Compact Ion Cannon Ballistic Gun Gauss Rifle Ballistic Cannon Gauss Cannon Launcher Mini Grenade Launcher Special Weapon Improved Remote Datajack Impact Weapon Flail Slashing Weapon Power Sword Piercing Weapon Plasma Lance Special Melee Weapon Datajack Build | -11 -10 -10 -10 -9 -8 -8 -8 -8 -7 -7 -7 -7 -6 -6 -5 -5 -4 -4 -4 -3 -2 ------- Run | Yrd Mat Min Exi Min Mat Gar Mat Gar Fac Gar Fac Gar Fac Gar Fac Gar Fac Upp Upp Res Res Slots Evolved 16 | . . . . . 4 . . . 2 . . . 2 . 2 . 2 . . 2 2 Power 1 | . . . . . . . . . 1 . . . . . . . . . . . . Propulsion 4 | . . . . . 1 . . . 1 . . . . . 1 . . . . 1 . Utility 10 | . . . . . 2 . . . . . . . 2 . 1 . 2 . . 1 2 Weapon 1 | . . . . . 1 . . . . . . . . . . . . . . . . Parts Attached 305 | 2 8 12 2 2 17 8 12 15 27 9 6 18 7 32 4 41 29 12 6 13 23 Power 40 | . . 3 . . 1 2 1 3 5 2 . 2 1 8 2 3 1 3 . 1 2 Engine 14 | . . 3 . . . 1 . . . 1 . . . 8 . . . 1 . . . Core 21 | . . . . . 1 1 1 3 5 1 . 1 1 . 2 2 . 2 . 1 . Reactor 5 | . . . . . . . . . . . . 1 . . . 1 1 . . . 2 Propulsion 96 | . 3 2 . 1 7 1 3 2 10 2 . 4 . 13 1 15 13 2 1 9 7 Treads 40 | . 1 1 . 1 6 1 3 2 4 2 . 4 . . . 5 8 2 . . . Leg 38 | . 1 . . . . . . . 4 . . . . 13 1 10 5 . . . 4 Wheel 14 | . 1 1 . . 1 . . . 2 . . . . . . . . . . 8 1 Hover 2 | . . . . . . . . . . . . . . . . . . . 1 1 . Flight 2 | . . . . . . . . . . . . . . . . . . . . . 2 Utility 102 | 1 3 3 . . 6 3 3 4 10 2 5 7 3 8 1 14 9 5 4 2 9 Device 44 | 1 2 2 . . 1 . 1 2 5 1 3 1 1 6 . 6 3 1 3 2 3 Storage 9 | . 1 . . . 1 . . . . . . . . . . . . 4 . . 3 Processor 7 | . . . . . 2 . . . 1 . . 1 1 . . . 2 . . . . Hackware 21 | . . . . . . 1 . 1 3 1 1 4 . 2 . 4 1 . . . 3 Protection 21 | . . 1 . . 2 2 2 1 1 . 1 1 1 . 1 4 3 . 1 . . Artifact . | . . . . . . . . . . . . . . . . . . . . . . Weapon 67 | 1 2 4 2 1 3 2 5 6 2 3 1 5 3 3 . 9 6 2 1 1 5 Energy Gun 27 | 1 . 2 . 1 2 . 2 2 2 1 1 1 1 2 . 3 1 1 . 1 3 Energy Cannon 8 | . . . . . . . 1 1 . . . . 2 . . 1 2 . . . 1 Ballistic Gun 13 | . 1 2 . . . . . . . . . 1 . 1 . 3 2 1 1 . 1 Ballistic Cannon 3 | . . . . . . . . . . . . 2 . . . 1 . . . . . Launcher 7 | . . . 1 . . 1 2 2 . . . . . . . . 1 . . . . Special Weapon 2 | . . . . . . . . . . 2 . . . . . . . . . . . Impact Weapon 1 | . . . . . 1 . . . . . . . . . . . . . . . . Slashing Weapon 3 | . 1 . . . . . . 1 . . . 1 . . . . . . . . . Piercing Weapon 1 | . . . . . . . . . . . . . . . . 1 . . . . . Special Melee Weapon 2 | . . . 1 . . 1 . . . . . . . . . . . . . . . Unidentified Prototypes 13 | . . . . . 2 . 3 . . . 1 . 2 . . 1 3 . . . 1 Corrupted Parts 1 | . . . . 1 . . . . . . . . . . . . . . . . . System Corruption 4 | . . . . 4 . . . . . . . . . . . . . . . . . Parts Lost 116 | . 1 4 . . 2 1 . 1 12 1 . 6 . 10 . 6 16 10 5 6 35 Power 18 | . . 1 . . 1 1 . . 3 . . . . 3 . 1 1 2 1 . 4 Propulsion 34 | . . 1 . . . . . 1 5 . . . . 4 . 2 4 3 2 4 8 Utility 37 | . 1 . . . . . . . 3 . . 2 . 2 . 2 7 2 2 2 14 Weapon 27 | . . 2 . . 1 . . . 1 1 . 4 . 1 . 1 4 3 . . 9 Highest Loss Streak 24 | . 1 2 . . 1 1 . 1 9 1 . 2 . 2 . 3 7 7 5 6 24 To Critical Strikes . | . . . . . . . . . . . . . . . . . . . . . . Average Backups 20 | 6 13 19 18 18 20 24 24 24 23 22 23 22 22 23 24 24 21 13 14 19 13 Power . | 1 1 . 1 1 . . . 1 . 1 2 2 2 2 2 1 . . . . . Propulsion 2 | 4 6 4 2 2 3 5 3 2 1 2 2 1 1 1 2 2 1 . . . . Utility 11 | . 3 7 9 9 8 12 14 13 13 12 12 13 12 12 12 14 12 9 10 13 7 Weapon 5 | 1 3 5 5 5 6 5 5 6 6 5 5 4 6 5 5 4 5 2 2 3 3 Tool/Special . | . . . . . . . . . . . . . . . . . . . . . . Unused Backups 69 | . 3 9 3 . 3 4 6 1 . 6 1 11 1 5 3 5 1 . . 1 6 Power 4 | . . 2 . . . . . . . . . 2 . . . . . . . . . Propulsion 10 | . 2 2 1 . 1 . 1 . . . . 1 . 2 . . . . . . . Utility 35 | . 1 3 2 . 1 3 4 1 . 3 . 4 . 3 2 2 1 . . . 5 Weapon 19 | . . 2 . . 1 1 1 . . 3 1 4 1 . 1 2 . . . 1 1 Tool/Special 1 | . . . . . . . . . . . . . . . . 1 . . . . . Average Slot Usage (%) 91 | . 100 99 100 100 99 99 99 99 94 85 80 83 84 96 99 99 94 72 69 90 63 Engine 3 | . 14 13 14 14 8 1 . . . 6 7 1 . 12 4 . . . . . . Core 6 | . . . . . . 7 9 9 11 7 7 11 6 . 6 7 5 7 5 7 3 Treads 12 | . 7 14 14 14 22 27 27 26 18 12 15 15 13 . . 5 10 4 . . . Leg 6 | . 8 . . . . . . . 7 4 . . . 22 28 23 14 1 . . 2 Wheel 2 | . 12 14 14 14 4 . . . 2 . . . . . . . . . . 13 4 Device 11 | . 14 12 13 13 2 . 3 6 13 15 10 12 15 17 17 14 14 14 19 19 12 Storage 8 | . 14 14 14 14 9 9 9 9 7 7 7 7 6 6 5 5 5 9 10 8 6 Processor 7 | . . . . . 6 9 9 5 . . . 2 10 13 11 11 10 12 10 9 6 Hackware 1 | . . . . . . . . 3 1 7 4 1 . . . 1 3 . . . 9 Protection 6 | . . 1 . . 17 17 14 11 6 . 5 4 4 2 4 5 7 5 5 8 . Energy Gun 9 | . 14 14 14 27 22 21 17 17 15 14 13 11 . 1 11 1 3 1 . . 1 Energy Cannon 4 | . . . . . . . 2 4 . . . . 7 9 . 7 4 11 10 4 2 Ballistic Gun 2 | . 10 13 . . . . . . . . . 1 3 3 . 2 3 2 4 4 1 Slashing Weapon 1 | . 3 . . . 2 . . 2 4 5 5 4 3 3 3 . . . . . . Peak Build Rating 129 | 7 9 14 16 20 28 31 36 44 58 79 79 77 90 90 84 95 123 92 81 109 129 Average Rating 59 | 6 8 10 13 15 23 28 33 40 47 69 71 69 87 71 83 88 109 76 69 98 79 On Entrance 51 | 6 7 9 12 16 15 24 27 36 44 56 79 74 77 90 75 84 87 74 82 74 90 Naked Turns . | . . . . . . . . . . . . . . . . . . . . . . Heaviest Build 168 | 12 48 51 51 53 99 111 108 114 120 111 115 116 126 122 116 137 159 142 139 168 144 Greatest Support 150 | 20 20 16 16 16 60 60 64 64 82 150 150 150 150 150 95 125 150 60 28 60 50 Greatest Overweight (x) 49 | . 4 4 3 3 3 1 1 1 11 2 . . . 36 1 6 49 47 46 12 20 Average Overweight (x) 1 | . 3 3 3 3 . 1 1 1 1 . . . . 1 1 . 1 7 30 4 4 Largest Inventory Capacity 25 | 8 20 20 20 20 25 25 25 25 25 25 25 25 25 25 25 25 25 25 25 25 25 Average Capacity 24 | 8 18 20 20 20 22 25 25 25 25 25 25 25 25 25 25 25 25 25 25 25 17 Most Carried 25 | 8 20 20 20 20 25 25 25 25 25 25 25 25 25 25 25 25 25 16 16 25 22 Average Carried 21 | 6 13 19 19 20 21 24 24 24 23 24 23 24 24 24 24 24 21 13 14 19 13 Final Capacity 25 | 8 20 20 20 20 25 25 25 25 25 25 25 25 25 25 25 25 25 25 25 25 5 Final Carried 25 | 8 20 20 20 20 24 25 25 25 25 25 25 25 25 25 25 25 12 15 16 23 5 Class Distribution -------------------- 24% | Mutant 22% | Scavenger-Mutant 16% | Scavenger-Gunner 8% | Bothacker-Mutant 7% | Scavenger-Tank 4% | Gunner 4% | Scavenger-Skirmisher Dominant Class ---------------- Mutant | -10/Materials Mutant | -10/Mines Mutant | -10/Exiles Mutant | -9/Mines Scavenger-Skirmisher | -8/Materials Scavenger-Tank | -8/Garrison Mutant | -8/Materials Mutant | -8/Garrison Mutant | -7/Factory Scavenger-Mutant | -7/Garrison Scavenger-Mutant | -7/Factory Scavenger-Mutant | -7/Garrison Bothacker-Mutant | -6/Factory Bothacker-Mutant | -6/Garrison Scavenger-Mutant | -5/Factory Scavenger-Mutant | -5/Garrison Scavenger-Mutant | -4/Factory Scavenger-Gunner | -4/Upper Caves Scavenger-Gunner | -4/Upper Caves Scavenger-Mutant | -3/Research Scavenger-Mutant | -2/Research Resources | -11 -10 -10 -10 -9 -8 -8 -8 -8 -7 -7 -7 -7 -6 -6 -5 -5 -4 -4 -4 -3 -2 ----------- Run | Yrd Mat Min Exi Min Mat Gar Mat Gar Fac Gar Fac Gar Fac Gar Fac Gar Fac Upp Upp Res Res Matter Collected 9041 | 223 153 423 10 50 299 355 200 566 403 266 164 1338 . 881 64 1475 1026 511 181 238 215 Remotely 30 | . 30 . . . . . . . . . . . . . . . . . . . . Salvage Created 14356 | 100 315 179 . 101 598 347 810 826 793 800 366 1407 49 1342 87 1150 3158 591 160 346 831 Parts 598 | 8 28 9 . 9 33 17 28 39 42 25 14 62 2 53 5 31 103 16 7 26 41 Haulers Intercepted 12 | . 1 . . . 4 . 3 . . . . . . . 1 . 3 . . . . Recyclers Shooed 10 | . 1 . . 1 2 . 1 . . . . . . . . . 4 . . . 1 Parts Field Recycled . | . . . . . . . . . . . . . . . . . . . . . . Retrieved Matter . | . . . . . . . . . . . . . . . . . . . . . . Parts Self-Destructed 27 | . . . . . . . . . . . . . . . . . . 13 14 . . Prevented . | . . . . . . . . . . . . . . . . . . . . . . Kills | -11 -10 -10 -10 -9 -8 -8 -8 -8 -7 -7 -7 -7 -6 -6 -5 -5 -4 -4 -4 -3 -2 ------- Run | Yrd Mat Min Exi Min Mat Gar Mat Gar Fac Gar Fac Gar Fac Gar Fac Gar Fac Upp Upp Res Res Combat Hostiles Destroyed 218 | . 11 6 . 3 6 16 5 27 18 3 3 26 1 30 . 19 27 4 2 2 9 Melee 2 | . . . . . 1 . . . . . . . . . . . . . . . 1 Guns 81 | . 10 6 . . 3 5 4 10 11 3 . 10 . 10 . 4 2 . . . 3 Cannons 62 | . . . . . . . . 3 . . . 8 1 15 . 15 8 3 2 2 5 AOE 50 | . 1 . . 3 . 11 . 14 6 . . 6 . 2 . . 6 1 . . . Classes Destroyed 20 | 2 4 . . 1 3 1 . 3 3 . . . . . . 1 1 1 . . . Worker 9 | . . . . 1 1 . 2 . 1 . . . . . . . 1 . . 2 1 Builder 13 | . . . . . 1 . 1 . 2 . 1 . . . . . 5 . . 3 . Tunneler 3 | 2 . . . . . . 1 . . . . . . . . . . . . . . Hauler 12 | . 1 . . . 4 . 3 . . . . . . . 1 . 3 . . . . Recycler 14 | 1 . . . 1 . . 3 . 1 . 3 . . . . . 3 . . 1 1 Mechanic 3 | . . . . . . . . . 2 . . . . . . . 1 . . . . Operator 1 | . . . . . . . . . 1 . . . . . . . . . . . . Watcher 7 | . 2 . . . 2 . 2 . . . . . 1 . . . . . . . . Swarmer 51 | . 9 3 . 3 . 7 . 3 4 1 . 7 . 11 . 3 . . . . . Cutter 2 | . . . . . . . . 2 . . . . . . . . . . . . . Grunt 94 | . 2 3 . . 3 8 3 15 1 1 1 4 1 18 . 9 17 3 . . 5 Brawler 7 | . . . . . . 1 . . 1 . . . . . . . 5 . . . . Duelist 9 | . . . . . . . . 2 . . 1 4 . . . 1 1 . . . . Sentry 14 | . . . . . 2 . 2 1 2 . . 2 . . . 4 . . . . 1 Specialist 8 | . . . . . . . . . 4 . . 2 . 1 . . 1 . . . . Hunter 16 | . . . . . 1 . . 1 3 . . 3 . . . . 3 1 2 2 . Programmer 17 | . . . . . . . . 3 3 1 1 4 . . . 1 1 . . . 3 Behemoth 1 | . . . . . . . . . . . . . . . . . 1 . . . . Striker 2 | . . . . . . . . . . . . . . . . 2 . . . . . Samaritan 2 | . . . . . . . . . . . . . . . . . . 2 . . . Best Kill Streak 15 | 2 5 3 . 3 3 4 3 5 10 1 2 3 1 4 1 3 15 3 1 3 3 Combat Bots Only 11 | . 5 3 . 3 3 4 2 5 8 1 2 3 1 4 . 3 11 3 1 2 2 Max Kills in Single Turn 4 | 1 1 1 . 3 1 4 2 2 3 1 1 3 1 2 1 1 3 1 1 1 1 Gunslinging 1 | . . . . . . . . . 1 . . . . . . . . . . . . Exploded 4 | . 1 . . 3 . 4 . 2 2 . . 3 . 2 . . 2 1 . . . Melee 1 | . . . . . 1 . . . . . . . . . . . . . . . 1 Uniques/NPCs Destroyed . | . . . . . . . . . . . . . . . . . . . . . . Combat | -11 -10 -10 -10 -9 -8 -8 -8 -8 -7 -7 -7 -7 -6 -6 -5 -5 -4 -4 -4 -3 -2 -------- Run | Yrd Mat Min Exi Min Mat Gar Mat Gar Fac Gar Fac Gar Fac Gar Fac Gar Fac Upp Upp Res Res Hostile Shots Fired 1742 | . 47 35 . . 23 35 41 69 267 20 19 134 6 158 . 189 249 58 44 74 274 Missed 519 | . 9 6 . . 5 12 8 26 85 5 6 33 3 30 . 50 96 20 13 26 86 Hits 1223 | . 38 29 . . 18 23 33 43 182 15 13 101 3 128 . 139 153 38 31 48 188 Melee 22 | . . . . . . . . 2 . . 1 3 . . . 10 6 . . . . Projectile 1201 | . 38 29 . . 18 23 33 41 182 15 12 98 3 128 . 129 147 38 31 48 188 AOE 7 | . . . . . . . . . . 1 . . . . . . 6 . . . . Critical Strikes 58 | . . . . . 1 4 . 3 6 . . 3 . 6 . 6 8 1 . 3 17 Part Disruptions 3 | . . . . . . . . . . . . . . . . . 1 . . 1 1 Actively Blocked 2 | . . . . . . . . . . . . . . . . . 1 . . 1 . Damage Taken 22152 | . 439 321 . 25 281 422 498 914 2112 282 254 1496 57 2231 . 2584 4072 681 370 786 4327 Core 3098 | . 75 39 . 25 16 62 55 152 147 . 17 166 . 166 . 236 236 88 38 107 1473 Absorbed by Shields 1608 | . . . . . . . . . 301 . . 148 . 30 . 558 . . 179 320 72 Reduced by Siege Mode 317 | . . . . . . . . . . . 12 205 5 95 . . . . . . . Redirected to Shielding 172 | . . . . . 8 8 . . . . 5 51 . . . . 39 35 13 13 . Ignored by Resistances 173 | . . . . . . . . . 24 43 . . . . . . 106 . . . . Regen/Repaired (Parts) 40 | . . . . . 40 . . . . . . . . . . . . . . . . Core Remaining (%) 69 | 100 . . . 44 . . . 48 . . . 52 . 80 . 76 . . 68 91 . Volleys Fired 799 | 5 59 21 . 7 28 38 43 58 54 18 23 87 9 70 2 83 91 45 5 14 39 Largest 3 | 2 2 2 . 2 3 3 3 3 3 2 2 3 3 3 1 3 3 3 3 3 3 Hottest 293 | 70 70 75 . 100 175 188 168 213 255 170 170 209 180 249 7 251 259 293 293 233 282 Shots Fired 1604 | 10 118 41 . 12 73 73 87 108 108 34 39 179 23 168 2 203 146 72 15 28 65 Gun 983 | 10 118 41 . 11 73 60 74 68 100 31 32 105 7 50 . 84 58 14 3 7 37 Cannon 482 | . . . . . . . 11 21 . . . 56 15 110 . 102 50 56 12 21 28 Launcher 80 | . . . . 1 . 13 2 19 8 1 . 9 . 3 . . 24 . . . . Special 59 | . . . . . . . . . . 2 7 9 1 5 2 17 14 2 . . . Kinetic 337 | 5 59 20 . . . . . . . . . 61 13 37 . 65 44 9 3 7 14 Thermal 1093 | 5 59 21 . 11 73 60 85 89 100 31 32 100 9 123 . 121 34 56 12 21 51 Explosive 54 | . . . . 1 . 13 . 19 8 1 . 9 . 3 . . . . . . . Electromagnetic 61 | . . . . . . . 2 . . . . . . . . . 54 5 . . . Robot Hit Streak 32 | 7 8 6 . 5 9 15 13 15 13 6 11 17 13 23 12 32 18 7 12 3 16 Robot Miss Streak 9 | 1 7 2 . 1 4 4 2 3 9 6 2 3 1 3 . 4 3 6 2 3 3 Penetration Max 1 | . . . . . . . . . . . . . . . . 1 1 . . . . Secondary Targets 6 | . . 1 . . . 1 . 1 3 . . . . . . . . . . . . Max Gunslinging Chain 2 | . . 1 . . . 1 . 1 2 . . . . . . . . . . . . Shots Hit Robots 1077 | 7 66 26 8 7 48 30 59 55 68 47 28 144 17 118 3 131 105 29 11 13 57 Core Hits 543 | 5 21 12 . 6 21 25 26 48 46 21 8 63 5 50 1 46 77 17 5 9 31 Critical Kills 4 | . . . . . 1 . . . . . . . . 3 . . . . . . . Critical Parts Destroyed 3 | . . . . . 2 . . . . . . . . . . 1 . . . . . Critical Strikes 70 | . 4 2 . 1 11 2 1 5 14 3 4 13 . 5 . 3 1 . . 1 . Burn 50 | . 4 2 . 1 8 2 1 5 14 2 4 6 . 1 . . . . . . . Meltdown 2 | . . . . . . . . . . . . . . 2 . . . . . . . Destroy 3 | . . . . . . . . . . . . . . 1 . 1 1 . . . . Blast 7 | . . . . . . . . . . . . 5 . . . 2 . . . . . Smash 3 | . . . . . 3 . . . . . . . . . . . . . . . . Sever 4 | . . . . . . . . . . 1 . 2 . 1 . . . . . . . Impale 1 | . . . . . . . . . . . . . . . . . . . . 1 . Melee Attacks 310 | . 13 2 8 . 19 9 10 10 18 42 8 54 12 24 3 29 6 5 . 26 12 Thermal 2 | . . . . . . . . . . . . 2 . . . . . . . . . Impact 31 | . . . . . 6 7 10 8 . . . . . . . . . . . . . Slashing 185 | . 13 2 . . 13 . . . 14 42 8 52 12 24 3 2 . . . . . Piercing 76 | . . . . . . . . . . . . . . . . 27 6 5 . 26 12 Sneak Attacks 22 | . . . 8 . . . 1 1 6 . . . . . 1 . . . . 4 1 Combat Hostiles . | . . . . . . . . . . . . . . . . . . . . . . Follow-up Attacks . | . . . . . . . . . . . . . . . . . . . . . . Damage Inflicted 35504 | 81 819 270 . 196 862 1422 1231 2465 2932 2495 434 5189 397 3263 64 3439 5973 1024 370 604 1974 Guns 11279 | 81 706 270 . 76 724 336 843 734 1067 163 434 1440 124 638 . 1434 1186 122 18 18 865 Cannons 8575 | . . . . . . . 183 156 . . . 1072 273 1950 . 1818 1368 412 352 241 750 Explosions 9933 | . 113 . . 120 . 1086 118 1575 1698 72 . 1087 . 557 . . 3413 94 . . . Melee 5698 | . . . . . 138 . 76 . 167 2260 . 1590 . 118 64 187 . 396 . 345 357 Ramming 19 | . . . . . . . 11 . . . . . . . . . 6 . . . 2 Kinetic 4675 | 32 273 86 . . . . . . . . . 1127 233 427 . 1154 945 76 18 18 286 Thermal 14697 | 49 433 184 . 76 724 336 1026 890 1067 163 434 1385 164 2161 . 2098 1079 506 352 241 1329 Explosive 6642 | . 113 . . 120 . 1086 . 1575 1698 72 . 1087 . 557 . . 334 . . . . Electromagnetic 3773 | . . . . . . . 118 . . . . . . . . . 3609 46 . . . Impact 214 | . . . . . 138 . 76 . . . . . . . . . . . . . . Slashing 4199 | . . . . . . . . . 167 2260 . 1590 . 118 64 . . . . . . Piercing 1285 | . . . . . . . . . . . . . . . . 187 . 396 . 345 357 Highest Corruption 15 | . . . . 4 . . . 1 2 2 2 2 . . . 2 13 13 13 3 15 Average Corruption 5 | . . . . 4 . . . 1 1 2 2 2 . . . 1 5 13 13 2 7 Corruption Purged . | . . . . . . . . . . . . . . . . . . . . . . Corruption Blocked . | . . . . . . . . . . . . . . . . . . . . . . Effects 379 | . . . . 1 . . . 20 3 17 13 38 . . . 32 22 201 25 . 7 Message Errors 84 | . . . . . . . . 4 . 5 4 8 . . . 8 5 43 5 . 2 Matter Fused 93 | . . . . 1 . . . 5 3 3 4 11 . . . 7 5 46 8 . . Heat Flow Errors 52 | . . . . . . . . 3 . 3 . 6 . . . 4 4 27 2 . 3 Energy Discharges 35 | . . . . . . . . 2 . 1 2 4 . . . 4 1 19 1 . 1 Parts Rejected 1 | . . . . . . . . . . . 1 . . . . . . . . . . Parts Fused 5 | . . . . . . . . . . . . . . . . . . 4 1 . . Data Loss (minor) 50 | . . . . . . . . 3 . 2 1 3 . . . 4 2 30 5 . . Data Loss (major) 25 | . . . . . . . . . . 1 . 3 . . . 1 2 15 2 . 1 Misfires 15 | . . . . . . . . 1 . 2 . . . . . 3 . 9 . . . Alerts 11 | . . . . . . . . . . . 1 2 . . . 1 1 5 1 . . Weapon Failures 8 | . . . . . . . . 2 . . . 1 . . . . 2 3 . . . Overload Shots . | . . . . . . . . . . . . . . . . . . . . . . Overflow Damage 1064 | . 33 . . . 90 102 41 70 36 6 . 132 . 28 . 143 63 93 . 218 9 Projectiles 120 | . . . . . . . . 11 . . . 16 . 28 . 20 28 17 . . . Explosions 237 | . 33 . . . . 102 5 59 . . . 3 . . . . 35 . . . . Melee 707 | . . . . . 90 . 36 . 36 6 . 113 . . . 123 . 76 . 218 9 Knockbacks 20 | . . . . . 1 . 1 . . . . 11 2 . . 5 . . . . . Impact 2 | . . . . . 1 . 1 . . . . . . . . . . . . . . Kinetic 18 | . . . . . . . . . . . . 11 2 . . 5 . . . . . Secondary . | . . . . . . . . . . . . . . . . . . . . . . Self-Inflicted Damage 971 | . 51 . . 25 . 87 . 81 . . . 141 . 1 . . 584 . . . 1 Shots 27 | . 1 . . 1 . 3 . 3 . . . 3 . 1 . . 15 . . . . Rammed 7 | . . . . . . . 3 . . . . . . . . . 2 . . . 2 Targets Rammed 7 | . . . . . . . 3 . . . . . . . . . 2 . . . 2 Kicked . | . . . . . . . . . . . . . . . . . . . . . . Crushed . | . . . . . . . . . . . . . . . . . . . . . . Highest Temperature 582 | 60 190 249 . 84 341 433 321 426 457 279 582 513 12 364 . 494 217 448 234 448 373 Average Temperature 119 | 28 52 84 . 29 116 104 90 138 163 66 257 140 4 137 . 130 45 128 116 162 111 Received Heat Transfer 4399 | . 78 120 . . 54 252 243 216 202 66 45 144 27 858 . 594 807 156 . . 537 Effects 54 | . . . . . 1 1 . 6 8 . 12 12 . . . 12 . . . 1 1 Shutdowns 15 | . . . . . . 1 . 2 1 . 3 6 . . . 2 . . . . . Energy Bleed 11 | . . . . . 1 . . 1 1 . 1 5 . . . 1 . . . . 1 Interference 20 | . . . . . . . . 3 5 . 4 . . . . 8 . . . . . Matter Decay 1 | . . . . . . . . . . . 1 . . . . . . . . . . Short Circuit 3 | . . . . . . . . . 1 . . 1 . . . . . . . 1 . Damage (minor) 3 | . . . . . . . . . . . 2 . . . . 1 . . . . . Damage (major) 1 | . . . . . . . . . . . 1 . . . . . . . . . . Siege Activations 19 | . . . . . . . . . . 3 1 13 1 1 . . . . . . . Total Turns 373 | . . . . . . . . . . 47 17 251 15 43 . . . . . . . Longest Duration 68 | . . . . . . . . . . 24 17 68 15 43 . . . . . . . Martial Activations . | . . . . . . . . . . . . . . . . . . . . . . Shielding Activations . | . . . . . . . . . . . . . . . . . . . . . . Robots Disrupted 1 | . . . . . . . . . . . . . . . . . . 1 . . . Combat Hostiles 1 | . . . . . . . . . . . . . . . . . . 1 . . . Robots Corrupted 15 | . . . . . 2 . 1 . . . . . . . . . 12 . . . . Combat Hostiles 13 | . . . . . 2 . . . . . . . . . . . 11 . . . . Parts Fried 35 | . . . . . 3 . 3 . . . . . . . . . 29 . . . . Impact Corruptions 5 | . . . . . 3 . 2 . . . . . . . . . . . . . . Robots Melted 10 | . . . . . . . 1 . 1 . 3 2 . 3 . . . . . . . Combat Hostiles 10 | . . . . . . . 1 . 1 . 3 2 . 3 . . . . . . . Parts Melted 68 | . . 2 . . 6 1 7 5 11 1 7 6 . 10 . 6 2 3 . 1 . Heat Transferred 29977 | 148 1554 666 . 296 2442 888 2331 2328 4150 548 1550 3226 222 2882 . 2993 1187 531 370 259 1406 Parts Sabotaged 3 | . . . . . . . . . . . . . . . . . 3 . . . . Parts Stolen . | . . . . . . . . . . . . . . . . . . . . . . Parts Stripped . | . . . . . . . . . . . . . . . . . . . . . . Power Chain Reactions 6 | . . . . . . . . . . . . . . . . . 5 1 . . . Alert | -11 -10 -10 -10 -9 -8 -8 -8 -8 -7 -7 -7 -7 -6 -6 -5 -5 -4 -4 -4 -3 -2 ------- Run | Yrd Mat Min Exi Min Mat Gar Mat Gar Fac Gar Fac Gar Fac Gar Fac Gar Fac Upp Upp Res Res Maximum Alert Level 5 | . . . . . . 4 3 4 3 3 2 5 4 5 4 5 5 . . . . Low Security (%) 25 | 100 100 100 . 100 100 21 . 3 22 33 . . . . . . . . . 100 100 Level 1 7 | . . . . . . 8 14 17 43 8 . 12 . . . . . . . . . Level 2 17 | . . . . . . 25 78 28 17 34 100 27 . 4 . 3 . . . . . Level 3 20 | . . . . . . 22 7 26 16 23 . 12 62 47 80 29 . . . . . Level 4 16 | . . . . . . 21 . 24 . . . 18 37 23 19 24 62 . . . . Level 5 11 | . . . . . . . . . . . . 28 . 24 . 41 11 . . . . High Security 1 | . . . . . . . . . . . . . . . . . 26 . . . . Max Security . | . . . . . . . . . . . . . . . . . . . . . . Peak Influence 2970 | 10 176 50 . 80 106 1573 766 1497 785 930 504 2396 1257 2436 1278 2970 1980 . . 65 46 Initial 1558 | . 3 . . . . 45 766 177 785 144 487 294 1257 637 1278 667 1558 . . 65 . Average 807 | 2 67 8 . 20 17 696 486 762 369 470 458 1182 1073 1267 1070 1573 1541 . . 17 10 Influence Increases 14857 | 15 449 183 . 90 307 1538 482 1350 481 816 208 2342 58 1979 23 2383 1556 125 50 141 281 Destroy 0b10 Robot/C 5620 | . 220 140 . 60 120 320 180 600 360 380 100 800 20 680 . 600 700 80 40 40 180 Destroy 0b10 Robot/NC 450 | 15 15 . . 10 40 5 70 . 35 30 20 40 5 5 5 10 95 10 . 30 10 Destroy Leader 672 | . 46 30 . 10 52 10 82 30 60 30 10 50 2 40 2 30 108 20 10 10 40 Allied During Kill 471 | . . 12 . . . 1 52 17 . 60 11 134 . 34 . 58 92 . . . . Trap Triggered on 0b10 10 | . . . . . . 10 . . . . . . . . . . . . . . . Successful Hack 209 | . 34 . . . 41 . 27 . 5 10 . 14 17 14 12 30 . . . 5 . Disable Machine 330 | . 15 . . . . 45 15 15 . 15 60 15 . 15 . . 135 . . . . Anti-Garrison Action 5200 | . . . . . . 1050 . 500 . 200 . 1000 . 1100 . 1350 . . . . . Destroy Structure 1175 | . 44 1 . 10 9 82 11 143 21 91 7 184 14 61 4 185 216 . . 56 36 Partial Spotted 45 | . 15 . . . 15 15 . . . . . . . . . . . . . . . Lose Combat Pursuer 675 | . 60 . . . 30 . 45 45 . . . 105 . 30 . 120 210 15 . . 15 Influence Decreases 14857 | 10 454 183 . 90 237 35 1782 126 1772 92 717 367 1543 454 1506 366 2606 1601 397 238 281 Entered New Map 7371 | . 2 . . . . 25 807 96 712 62 443 127 1139 274 1158 286 1412 711 85 32 . Time Decay 4745 | 10 442 149 . 90 227 . 595 . 565 . 254 . 404 . 198 . 474 770 262 202 103 Lost Part 902 | . 10 20 . . 10 10 . 10 120 10 . 60 . 100 . 60 160 100 50 4 178 Lost Ally 514 | . . 14 . . . . 80 20 . 20 20 180 . 80 . 20 60 20 . . . Purge Threat 1325 | . . . . . . . 300 . 375 . . . . . 150 . 500 . . . . Squads Dispatched 46 | . 2 . . . 2 . 4 . 3 . 2 . 3 . 1 . 24 . . 3 2 Investigation 2 | . 1 . . . 1 . . . . . . . . . . . . . . . . Extermination 9 | . . . . . . . . . 2 . 1 . 1 . . . 2 . . 2 1 Reinforcement 11 | . 1 . . . 1 . 2 . 1 . . . 1 . . . 3 . . 1 1 Assault 22 | . . . . . . . . . . . 1 . 1 . 1 . 19 . . . . Garrison 2 | . . . . . . . 2 . . . . . . . . . . . . . . Intercept . | . . . . . . . . . . . . . . . . . . . . . . Searches Triggered . | . . . . . . . . . . . . . . . . . . . . . . Construction Impeded 1 | . . . . . . . 1 . . . . . . . . . . . . . . Haulers Reinforced 2 | . . . . . . . . . . . . . 1 . . . 1 . . . . Active Scanning Responses . | . . . . . . . . . . . . . . . . . . . . . . Cargo Convoy Interrupts 1 | . . . . . . . . . 1 . . . . . . . . . . . . Stealth | -11 -10 -10 -10 -9 -8 -8 -8 -8 -7 -7 -7 -7 -6 -6 -5 -5 -4 -4 -4 -3 -2 --------- Run | Yrd Mat Min Exi Min Mat Gar Mat Gar Fac Gar Fac Gar Fac Gar Fac Gar Fac Upp Upp Res Res Distress Signals 19 | . 1 . . . 2 . 3 5 1 . 1 1 1 . . . 3 . . . 1 Communications Jammed 31 | . . . . . . . . . . . . . . . . . 31 . . . . Distress Signals 30 | . . . . . . . . . . . . . . . . . 30 . . . . Times Spotted 402 | . 21 10 . . 12 17 28 28 31 11 8 47 3 31 . 42 84 6 2 7 14 Peak Tracking Total 20 | . 6 4 . . 3 4 4 6 12 3 3 6 2 4 . 7 20 2 2 5 5 Tactical Retreats 34 | . 3 . . . 2 . 3 2 . . . 5 . 2 . 5 10 1 . . 1 Traps | -11 -10 -10 -10 -9 -8 -8 -8 -8 -7 -7 -7 -7 -6 -6 -5 -5 -4 -4 -4 -3 -2 ------- Run | Yrd Mat Min Exi Min Mat Gar Mat Gar Fac Gar Fac Gar Fac Gar Fac Gar Fac Upp Upp Res Res Traps Triggered 36 | . 2 . . . . 6 . 7 1 2 . 2 . 7 . 4 1 . . 3 1 Indirectly . | . . . . . . . . . . . . . . . . . . . . . . Trap Hack Attempts . | . . . . . . . . . . . . . . . . . . . . . . Triggered . | . . . . . . . . . . . . . . . . . . . . . . Disarmed 1 | . . . . . . . 1 . . . . . . . . . . . . . . Reprogrammed . | . . . . . . . . . . . . . . . . . . . . . . Reused 1 | . . . . . . 1 . . . . . . . . . . . . . . . Traps Extracted . | . . . . . . . . . . . . . . . . . . . . . . Installed 1 | . . . . . . 1 . . . . . . . . . . . . . . . Triggered 1 | . . . . . . 1 . . . . . . . . . . . . . . . Most Traps Carried 1 | . . . . . . 1 . . . . . . . . . . . . . . . Machines | -11 -10 -10 -10 -9 -8 -8 -8 -8 -7 -7 -7 -7 -6 -6 -5 -5 -4 -4 -4 -3 -2 ---------- Run | Yrd Mat Min Exi Min Mat Gar Mat Gar Fac Gar Fac Gar Fac Gar Fac Gar Fac Upp Upp Res Res Machines Disabled 44 | . 1 . . . . 8 1 5 . 4 4 5 . 4 . 3 9 . . . . Max in Single Turn 2 | . 1 . . . . 1 1 1 . 1 1 1 . 1 . 1 2 . . . . Garrison Relay 20 | . . . . . . 5 . 4 . 2 . 4 . 2 . 3 . . . . . Machines Repaired . | . . . . . . . . . . . . . . . . . . . . . . Machines Dismantled . | . . . . . . . . . . . . . . . . . . . . . . Machines Sabotaged . | . . . . . . . . . . . . . . . . . . . . . . Overloaded Fab Kills . | . . . . . . . . . . . . . . . . . . . . . . Hacking | -11 -10 -10 -10 -9 -8 -8 -8 -8 -7 -7 -7 -7 -6 -6 -5 -5 -4 -4 -4 -3 -2 --------- Run | Yrd Mat Min Exi Min Mat Gar Mat Gar Fac Gar Fac Gar Fac Gar Fac Gar Fac Upp Upp Res Res Machines Accessed 65 | . 8 1 2 . 7 4 8 2 7 2 4 3 4 2 3 4 1 . . 1 2 Terminals 43 | . 7 . . . 5 4 5 2 3 2 1 3 1 2 2 4 . . . 1 1 Fabricators 3 | . . . . . . . . . 2 . . . 1 . . . . . . . . Repair Stations 4 | . . . . . 1 . 1 . 1 . . . . . . . 1 . . . . Recycling Units 3 | . 1 . . . . . . . . . 1 . . . . . . . . . 1 Scanalyzers 3 | . . . . . . . 1 . . . 1 . 1 . . . . . . . . Garrison Access 6 | . . . . . 1 . 1 . 1 . 1 . 1 . 1 . . . . . . Total Hacks 143 | . 26 1 2 . 24 7 25 2 11 3 6 3 7 4 7 8 1 . . 1 5 Successful 74 | . 14 1 2 . 16 1 14 . 4 2 2 2 5 2 4 2 1 . . 1 1 Failed 69 | . 12 . . . 8 6 11 2 7 1 4 1 2 2 3 6 . . . . 4 Catastrophic 15 | . 1 . . . 2 1 2 1 3 . 1 . . . 1 3 . . . . . Database Lockouts . | . . . . . . . . . . . . . . . . . . . . . . Manual 71 | . 19 . 1 . 17 . 14 . 4 . 3 . 3 . 5 1 1 . . . 3 Terminals 108 | . 23 . . . 20 7 18 2 5 3 3 3 2 4 6 8 . . . 1 3 Fabricators 6 | . . . . . . . . . 4 . . . 2 . . . . . . . . Repair Stations 5 | . . . . . 2 . 1 . 1 . . . . . . . 1 . . . . Recycling Units 6 | . 3 . . . . . . . . . 1 . . . . . . . . . 2 Scanalyzers 8 | . . . . . . . 5 . . . 1 . 2 . . . . . . . . Garrison Access 7 | . . . . . 2 . 1 . 1 . 1 . 1 . 1 . . . . . . Terminal Hacks 31 | . 5 1 2 . 6 1 5 . 1 2 . 2 . 2 1 2 . . . 1 . Record 1 | . . . 1 . . . . . . . . . . . . . . . . . . Robot Analysis 3 | . 2 . . . 1 . . . . . . . . . . . . . . . . Open Door 3 | . . 1 . . . 1 . . . . . 1 . . . . . . . . . Open DSF 2 | . . . . . . . . . 1 . . . . . . . . . . 1 . Branch Access Points 1 | . 1 . . . . . . . . . . . . . . . . . . . . Emergency Access Points 4 | . . . . . . . . . . 1 . 1 . 1 . 1 . . . . . Terminal Index 1 | . . . . . 1 . . . . . . . . . . . . . . . . Unreport Threat 3 | . . . . . . . 2 . . . . . . . 1 . . . . . . Locate Traps 6 | . 2 . . . 3 . 1 . . . . . . . . . . . . . . Disarm Traps 1 | . . . . . . . 1 . . . . . . . . . . . . . . Hauler Manifests 1 | . . . . . . . 1 . . . . . . . . . . . . . . Zone Layout 1 | . . . . . 1 . . . . . . . . . . . . . . . . Patrol Navigation 1 | . . . . . . . . . . . . . . 1 . . . . . . . Security Stations 2 | . . . . . . . . . . 1 . . . . . 1 . . . . . Proto ID Catalog 1 | . . . 1 . . . . . . . . . . . . . . . . . . Fabricator Hacks 3 | . . . . . . . . . 2 . . . 1 . . . . . . . . Network Status 1 | . . . . . . . . . . . . . 1 . . . . . . . . Load Schematic 1 | . . . . . . . . . 1 . . . . . . . . . . . . Build 1 | . . . . . . . . . 1 . . . . . . . . . . . . Repair Station Hacks 2 | . . . . . 2 . . . . . . . . . . . . . . . . Scan Component 1 | . . . . . 1 . . . . . . . . . . . . . . . . Repair 1 | . . . . . 1 . . . . . . . . . . . . . . . . Recycling Unit Hacks 2 | . 1 . . . . . . . . . 1 . . . . . . . . . . Retrieve Components 2 | . 1 . . . . . . . . . 1 . . . . . . . . . . Scanalyzer 7 | . . . . . . . 5 . . . . . 2 . . . . . . . . Insert Component 4 | . . . . . . . 3 . . . . . 1 . . . . . . . . Analyze 3 | . . . . . . . 2 . . . . . 1 . . . . . . . . Garrison Access Hacks 6 | . . . . . 1 . 1 . 1 . 1 . 1 . 1 . . . . . . Unlock Access 6 | . . . . . 1 . 1 . 1 . 1 . 1 . 1 . . . . . . Unauthorized Hacks 23 | . 8 . . . 7 . 3 . . . . . 1 . 2 . 1 . . . 1 Terminals 21 | . 8 . . . 7 . 3 . . . . . . . 2 . . . . . 1 Assimilate 1 | . 1 . . . . . . . . . . . . . . . . . . . . Botnet 9 | . 1 . . . 3 . 2 . . . . . . . 2 . . . . . 1 Operators 3 | . 1 . . . 1 . 1 . . . . . . . . . . . . . . Skim 8 | . 5 . . . 3 . . . . . . . . . . . . . . . . Fabricators 1 | . . . . . . . . . . . . . 1 . . . . . . . . Haulers 1 | . . . . . . . . . . . . . 1 . . . . . . . . Repair Stations 1 | . . . . . . . . . . . . . . . . . 1 . . . . Mechanics 1 | . . . . . . . . . . . . . . . . . 1 . . . . Recycling Units . | . . . . . . . . . . . . . . . . . . . . . . Scanalyzers . | . . . . . . . . . . . . . . . . . . . . . . Garrison Access . | . . . . . . . . . . . . . . . . . . . . . . Data Cores Recovered 1 | . . . . . . . 1 . . . . . . . . . . . . . . Used . | . . . . . . . . . . . . . . . . . . . . . . Hacking Detections 54 | . 8 . . . 7 4 8 2 6 2 2 2 3 1 3 4 . . . . 2 Full Trace Events 1 | . . . . . 1 . . . . . . . . . . . . . . . . Feedback Events . | . . . . . . . . . . . . . . . . . . . . . . Feedback Blocked . | . . . . . . . . . . . . . . . . . . . . . . Robot Schematics Acquired . | . . . . . . . . . . . . . . . . . . . . . . Robots Built . | . . . . . . . . . . . . . . . . . . . . . . Authchips . | . . . . . . . . . . . . . . . . . . . . . . Time . | . . . . . . . . . . . . . . . . . . . . . . Total Robot Build Rating . | . . . . . . . . . . . . . . . . . . . . . . Part Schematics Acquired 3 | . . . . . . . 2 . . . . . 1 . . . . . . . . Parts Built 2 | . . . . . . . . . 2 . . . . . . . . . . . . Authchips . | . . . . . . . . . . . . . . . . . . . . . . Time 42 | . . . . . . . . . 42 . . . . . . . . . . . . Total Part Build Rating 8 | . . . . . . . . . 8 . . . . . . . . . . . . Parts Repaired 1 | . . . . . 1 . . . . . . . . . . . . . . . . Time 26 | . . . . . 26 . . . . . . . . . . . . . . . . Parts Recycled . | . . . . . . . . . . . . . . . . . . . . . . Recycled Matter . | . . . . . . . . . . . . . . . . . . . . . . Retrieved Matter . | . . . . . . . . . . . . . . . . . . . . . . Retrieved Components 3 | . 2 . . . . . . . . . 1 . . . . . . . . . . Parts Scanalyzed 3 | . . . . . . . 2 . . . . . 1 . . . . . . . . Part Schematics Acquired 3 | . . . . . . . 2 . . . . . 1 . . . . . . . . Parts Damaged 1 | . . . . . . . . . . . . . 1 . . . . . . . . Bothacking | -11 -10 -10 -10 -9 -8 -8 -8 -8 -7 -7 -7 -7 -6 -6 -5 -5 -4 -4 -4 -3 -2 ------------ Run | Yrd Mat Min Exi Min Mat Gar Mat Gar Fac Gar Fac Gar Fac Gar Fac Gar Fac Upp Upp Res Res Used RIF Installer 8 | . . . . . . 2 . 1 . 1 . 1 . 2 . 1 . . . . . Coupler Efficiency 1 | . . . . . . 1 . . . . . . . . . . . . . . . Code Merge 1 | . . . . . . . . . . 1 . . . . . . . . . . . Signal Jammer 1 | . . . . . . . . . . . . 1 . . . . . . . . . Robot Detection 1 | . . . . . . . . . . . . . . 1 . . . . . . . Patrol Navigation 1 | . . . . . . . . . . . . . . 1 . . . . . . . Program Shield 1 | . . . . . . . . 1 . . . . . . . . . . . . . Autoassimilate 1 | . . . . . . . . . . . . . . . . 1 . . . . . Robots Hacked 38 | . . . 8 . . 2 . 1 1 1 4 3 1 2 2 6 7 . . . . Non-combat 13 | . . . 3 . . . . . 1 . 1 . 1 . 2 . 5 . . . . Combat 25 | . . . 5 . . 2 . 1 . 1 3 3 . 2 . 6 2 . . . . Robot Hacks Applied 44 | . . . 8 . . 2 . 1 3 1 4 3 1 2 2 7 10 . . . . parse_system 9 | . . . 8 . . . . . . . . . . . 1 . . . . . . find_chute 3 | . . . . . . . . . . . . . 1 . 1 . 1 . . . . find_recycling 2 | . . . . . . . . . . . 1 . . . . . 1 . . . . purge_threat 8 | . . . . . . . . . 3 . . . . . . . 5 . . . . amplify_resonance 3 | . . . . . . . . . . . 1 . . . . 2 . . . . . reboot_system 1 | . . . . . . . . . . . . . . . . 1 . . . . . overwrite_iff 1 | . . . . . . . . . . . . . . . . . 1 . . . . formatsys_low 1 | . . . . . . . . . . . . . . . . . 1 . . . . formatsys_high 16 | . . . . . . 2 . 1 . 1 2 3 . 2 . 4 1 . . . . Relay Couplers Released 85 | . . . . . . 22 . 19 . 7 . 17 . 10 . 10 . . . . . Machine Destruction 85 | . . . . . . 22 . 19 . 7 . 17 . 10 . 10 . . . . . Attached 16 | . . . . . . 1 . 1 1 1 1 4 . 2 . 4 1 . . . . Merged Code Value 37 | . . . . . . . . . . . . . . . . 37 . . . . . Fabnet Peak Effective % . | . . . . . . . . . . . . . . . . . . . . . . Robots Rewired 13 | . . . . . . . . . . . . 8 . 2 . 2 . 1 . . . Allies Hacked 1 | . . . . . . . . . . . . 1 . . . . . . . . . Hacks Repelled . | . . . . . . . . . . . . . . . . . . . . . . Allies | -11 -10 -10 -10 -9 -8 -8 -8 -8 -7 -7 -7 -7 -6 -6 -5 -5 -4 -4 -4 -3 -2 -------- Run | Yrd Mat Min Exi Min Mat Gar Mat Gar Fac Gar Fac Gar Fac Gar Fac Gar Fac Upp Upp Res Res Total Allies 40 | . . 2 . . . 4 . 1 . 3 2 14 . 4 . 6 3 1 . . . Largest Group 6 | . . 2 1 . . 4 4 1 . 2 3 6 . 3 . 4 5 1 . . . Highest-Rated Group 316 | . . 46 31 . . 75 75 15 . 157 124 228 . 93 . 294 316 56 . . . Highest-Rated Ally 95 | . . 31 31 . . 25 25 15 . 95 95 80 . 32 . 85 85 56 . . . Total Orders 26 | . . . . . . . . 4 . . . 1 . 2 . 18 1 . . . . STAY 16 | . . . . . . . . 2 . . . 1 . 1 . 11 1 . . . . FOLLOW 10 | . . . . . . . . 2 . . . . . 1 . 7 . . . . . Ally Attacks 292 | . . 20 . . . 5 33 13 . 39 4 71 . 18 . 36 47 6 . . . Total Damage 9254 | . . 376 . . . 79 734 253 . 1458 215 1857 . 369 . 1435 2257 221 . . . Kills 78 | . . 3 . . . 1 6 3 . 16 4 15 . 4 . 11 15 . . . . Allies Corrupted 2 | . . . . . . . . . . . . 2 . . . . . . . . . Allies Melted . | . . . . . . . . . . . . . . . . . . . . . . Intel | -11 -10 -10 -10 -9 -8 -8 -8 -8 -7 -7 -7 -7 -6 -6 -5 -5 -4 -4 -4 -3 -2 ------- Run | Yrd Mat Min Exi Min Mat Gar Mat Gar Fac Gar Fac Gar Fac Gar Fac Gar Fac Upp Upp Res Res Active Infowar (turns) 18903 | 43 1190 1083 772 370 1516 2879 1881 1265 134 1010 37 210 339 . . . 432 5102 . 427 213 Optics 7245 | . . . . . 1146 2879 1881 1265 74 . . . . . . . . . . . . Sensors 176 | . . 20 . . . . . . . . . . 156 . . . . . . . . Seismic 3808 | 43 1190 1063 772 370 370 . . . . . . . . . . . . . . . . Jamming 7732 | . . . . . . . . . 60 1010 37 210 241 . . . 432 5102 . 427 213 Robot Analysis Total 3 | . 2 . . . 1 . . . . . . . . . . . . . . . . Derelict Logs Recovered 7 | . . 2 . 2 . . . . . . . . . . . . . 2 1 . . Drone Launches . | . . . . . . . . . . . . . . . . . . . . . . Drone Recoveries . | . . . . . . . . . . . . . . . . . . . . . . Exploration | -11 -10 -10 -10 -9 -8 -8 -8 -8 -7 -7 -7 -7 -6 -6 -5 -5 -4 -4 -4 -3 -2 ------------- Run | Yrd Mat Min Exi Min Mat Gar Mat Gar Fac Gar Fac Gar Fac Gar Fac Gar Fac Upp Upp Res Res Turns Passed 35298 | 59 1293 1203 774 379 1546 2879 1881 2121 1695 1216 557 2952 965 3180 403 3572 1656 5102 575 729 561 Spaces Moved 12947 | 12 578 694 521 239 745 1089 601 777 580 558 273 1234 464 1038 194 1375 591 844 34 316 190 Core 164 | . . . . . . . . . . . . . . 2 . . 6 93 19 . 44 Treads 7073 | . 25 . . . 512 1089 601 777 316 515 273 1234 464 40 . 243 231 751 2 . . Legs 3012 | 12 34 . . . . . . . 217 43 . . . 996 194 1132 354 . . . 30 Wheels 2674 | . 519 694 521 239 233 . . . 47 . . . . . . . . . . 306 115 Hover 23 | . . . . . . . . . . . . . . . . . . . 13 10 . Flight 1 | . . . . . . . . . . . . . . . . . . . . . 1 Fastest Speed 50 | 120 120 130 145 145 115 240 230 230 155 160 160 160 160 160 190 160 145 225 480 110 50 Average Speed 217 | 120 139 140 145 145 175 240 235 234 225 166 160 160 160 209 190 192 210 580 1639 170 176 Slowest Speed 2500 | 120 160 145 145 145 320 240 240 238 570 265 160 160 160 1850 190 540 2500 2400 2350 780 1450 Overloaded Moves . | . . . . . . . . . . . . . . . . . . . . . . Propulsion Burnouts . | . . . . . . . . . . . . . . . . . . . . . . Robots Hopped . | . . . . . . . . . . . . . . . . . . . . . . Potential Cave-ins . | . . . . . . . . . . . . . . . . . . . . . . Cave-ins Triggered . | . . . . . . . . . . . . . . . . . . . . . . Exploration Rate (%) 48 | 3 83 99 90 50 46 79 57 71 13 67 11 92 10 75 5 94 16 82 6 8 5 Regions Visited 21 Branch Regions 5 Pre-discovered Areas 3 | . 1 1 1 . . . . . . . . . . . . . . . . . . Known Exits Taken 9 | . 1 . 1 . 1 . 1 . 1 . 1 . 1 . 1 . . . . 1 . Unknown Exits Taken 6 | 1 . 1 . 1 . . . . . . . . . . . . 1 1 1 . . Scrap Searched 5 | . . 1 . . . . . . . . . . . . . . . 3 1 . . Spaces Dug 143 | . 10 3 . . 9 3 8 19 12 . 7 6 12 10 2 3 6 10 . 21 2 Terrain Destroyed 678 | . 50 3 . 10 9 84 11 125 28 9 7 78 14 51 2 15 78 58 3 31 12 Melee 112 | . 10 2 . . 9 3 8 5 12 . 7 2 12 10 2 3 6 . . 19 2 Projectile 97 | . . 1 . . . . 3 1 . . . . 2 5 . 12 7 41 3 12 10 AOE 468 | . 40 . . 10 . 81 . 119 16 9 . 76 . 35 . . 65 17 . . . Terrain Rammed . | . . . . . . . . . . . . . . . . . . . . . . Walls Destroyed . | . . . . . . . . . . . . . . . . . . . . . . Machines Disabled . | . . . . . . . . . . . . . . . . . . . . . . Actions | -11 -10 -10 -10 -9 -8 -8 -8 -8 -7 -7 -7 -7 -6 -6 -5 -5 -4 -4 -4 -3 -2 --------- Run | Yrd Mat Min Exi Min Mat Gar Mat Gar Fac Gar Fac Gar Fac Gar Fac Gar Fac Upp Upp Res Res Total 18203 | 46 929 888 537 256 892 1286 978 955 836 761 341 1979 649 1877 226 2110 870 978 47 450 312 Wait 2879 | 26 252 112 . 5 45 86 269 42 126 83 7 419 146 597 6 439 81 49 . 55 34 Move 12927 | 11 577 693 520 238 744 1088 600 776 579 557 273 1233 463 1037 193 1374 590 843 33 315 190 Hop . | . . . . . . . . . . . . . . . . . . . . . . Pick Up 246 | 2 14 18 2 . 17 13 12 11 13 18 6 28 3 12 8 27 13 11 3 12 3 Fast Attach 93 | 1 . 1 . . 5 2 4 2 10 6 1 7 3 8 . 10 8 5 1 7 12 Attach 97 | . 1 3 . . 5 4 . 4 8 2 5 12 1 4 2 5 16 8 2 3 12 Detach 19 | . . . . . . . 1 . 3 1 1 6 . . . 2 3 . . 1 1 Swap 401 | 1 10 17 3 6 16 18 13 30 17 8 14 39 7 40 5 86 37 12 3 12 7 Drop 256 | . 3 19 4 . 13 14 23 12 8 26 3 27 5 22 7 47 18 . . 5 . Fire 799 | 5 59 21 . 7 28 38 43 58 54 18 23 87 9 70 2 83 91 45 5 14 39 Melee 310 | . 13 2 8 . 19 9 10 10 18 42 8 54 12 24 3 29 6 5 . 26 12 Ram 2 | . . . . . . . . . . . . . . . . . . . . . 2 Kick . | . . . . . . . . . . . . . . . . . . . . . . Crush 5 | . . . . . . . 3 . . . . . . . . . 2 . . . . Escape Stasis 57 | . . . . . . 12 . 10 . . . . . 30 . . 5 . . . . Rewire 111 | . . 2 . . . 1 . . . . . 67 . 33 . 8 . . . . . Trap 1 | . . . . . . 1 . . . . . . . . . . . . . . . Miscellaneous . | . . . . . . . . . . . . . . . . . . . . . . Route ------- -11/Scrapyard -10/Materials (discovered 6 exits: [*Mat x3] / *Min x2 / Sub) -10/Mines (discovered 4 exits: [*Mat x2] / *Exi / *Sub) -10/Exiles (discovered 2 exits: *Min x2) -9/Mines (discovered 2 exits: *Mat x2) -8/Materials (discovered 3 exits: *Fac / [*Sto] / Gar) -8/Garrison (discovered 3 exits: *Mat x3) -8/Materials (discovered 2 exits: *Fac / Gar) -8/Garrison (discovered 2 exits: *Fac x2) -7/Factory -7/Garrison (discovered 2 exits: *Fac x2) -7/Factory -7/Garrison (discovered 2 exits: *Fac x2) -6/Factory -6/Garrison (discovered 2 exits: *Fac x2) -5/Factory -5/Garrison (discovered 3 exits: *Fac x3) -4/Factory -4/Upper Caves -4/Upper Caves -3/Research -2/Research History --------- Turn | Location | Event 11 | -11/Scrapyard | Discovered new exit (range 3) 60 | -11/Scrapyard | Entered Materials 302 | -10/Materials | Build established: Mutant 592 | -10/Materials | Discovered new exit (range 11) 595 | -10/Materials | Discovered new exit (range 14) 768 | -10/Materials | Discovered new exit (range 7) 922 | -10/Materials | Identified exit to Mines 947 | -10/Materials | Learned 4 Recycling zone layouts 997 | -10/Materials | Discovered new exit (range 4) 1091 | -10/Materials | Learned 2 Storage zone layouts 1146 | -10/Materials | Learned 4 Recycling zone layouts 1221 | -10/Materials | Identified exit to Subcaves 1262 | -10/Materials | Learned Storage emergency access door positions 1353 | -10/Materials | Entered Mines 1515 | -10/Mines | Discovered exit to Subcaves (range 4) 1650 | -10/Mines | Met a Derelict who couldn't figure out how to use a Trap Extractor 1853 | -10/Mines | Assembled infested the area 1959 | -10/Mines | Discovered new exit (range 8) 2089 | -10/Mines | Discovered new exit (range 14) 2249 | -10/Mines | Learned location of Storage (-8) 2302 | -10/Mines | Learned Materials emergency access door positions 2545 | -10/Mines | Discovered new exit (range 5) 2556 | -10/Mines | Entered Exiles 2556 | -10/Exiles | Accompanied by 1 ally 2557 | -10/Exiles | Identified exit to Mines 2586 | -10/Exiles | Led the pair of lost Derelicts to a safe place 2593 | -10/Exiles | Met 8R-AWN 2635 | -10/Exiles | Met EX-HEX 2703 | -10/Exiles | Met EX-DEC 2758 | -10/Exiles | Learned location of Zion (-6) 2818 | -10/Exiles | Met EX-BIN 2841 | -10/Exiles | Aligned with FarCom system 2842 | -10/Exiles | Given EX-Vault access code 2886 | -10/Exiles | Opened EX-Vault 2896 | -10/Exiles | Found AWS/Autocannon 2926 | -10/Exiles | Warned to stay clear of 0b10 Research branches 3032 | -10/Exiles | Visited The Gauntlet 3330 | -10/Exiles | Left Exiles lab with AWS/Autocannon 3330 | -10/Exiles | Entered Mines 3331 | -9/Mines | Core integrity fell below 50% 3436 | -9/Mines | Learned 2 Materials zone layouts 3439 | -9/Mines | Discovered new exit (range 4) 3577 | -9/Mines | Learned Materials garrison access intel 3637 | -9/Mines | Discovered new exit (range 14) 3681 | -9/Mines | Excavation squad dispatched 3681 | -9/Mines | A large section of the Mines collapsed 3709 | -9/Mines | Entered Materials 3709 | -8/Materials | Evolved 4 slots: Propulsion x1, Utility x2, Weapon x1 3712 | -8/Materials | Loaded intel: 1 garrison access location 3724 | -8/Materials | Discovered new exit (range 15) 3824 | -8/Materials | Repaired Lgt. Armor Plating 4487 | -8/Materials | Build established: Scavenger-Skirmisher 4528 | -8/Materials | Identified exit to Garrison 4529 | -8/Materials | Discovered new exit (range 13) 5255 | -8/Materials | Entered Garrison 5295 | -8/Garrison | Build established: Scavenger-Mutant 5402 | -8/Garrison | Triggered checkpoint 5713 | -8/Garrison | Triggered checkpoint 5894 | -8/Garrison | Build established: Scavenger-Tank 5917 | -8/Garrison | Discovered new exit (range 12) 6105 | -8/Garrison | Triggered checkpoint 6172 | -8/Garrison | Garrison Relay disabled 6189 | -8/Garrison | Triggered checkpoint 6207 | -8/Garrison | Garrison Relay disabled 6387 | -8/Garrison | Triggered checkpoint 6608 | -8/Garrison | Triggered checkpoint 6749 | -8/Garrison | Discovered new exit (range 13) 6803 | -8/Garrison | Triggered checkpoint 6928 | -8/Garrison | Garrison Relay disabled 7222 | -8/Garrison | Discovered new exit (range 8) 7321 | -8/Garrison | Triggered checkpoint 7358 | -8/Garrison | Garrison Relay disabled 7580 | -8/Garrison | Installed Relay Interface Framework 7664 | -8/Garrison | Expanded RIF knowledge: Coupler Efficiency 7732 | -8/Garrison | Rescued a captive Derelict 7732 | -8/Garrison | Rescued a captive Derelict 7751 | -8/Garrison | Build established: Mutant 8134 | -8/Garrison | Entered Materials 8134 | -8/Materials | Accompanied by 4 allies 8139 | -8/Materials | Build established: Scavenger-Mutant 8457 | -8/Materials | Build established: Mutant 8992 | -8/Materials | Discovered new exit (range 7) 9129 | -8/Materials | Garrison activated, responded to threat 9550 | -8/Materials | Identified exit to Garrison 9983 | -8/Materials | Garrison activated, responded to threat 10015 | -8/Materials | Entered Garrison 10483 | -8/Garrison | Triggered checkpoint 10580 | -8/Garrison | Discovered new exit (range 12) 10598 | -8/Garrison | Expanded RIF knowledge: Program Shield 10707 | -8/Garrison | Triggered checkpoint 10744 | -8/Garrison | Garrison Relay disabled 10988 | -8/Garrison | Triggered checkpoint 11004 | -8/Garrison | Build established: Scavenger-Skirmisher 11038 | -8/Garrison | Garrison Relay disabled 11058 | -8/Garrison | Garrison Relay disabled 11615 | -8/Garrison | Triggered checkpoint 11703 | -8/Garrison | Core integrity fell below 50% 11948 | -8/Garrison | Discovered new exit (range 13) 12017 | -8/Garrison | Triggered checkpoint 12021 | -8/Garrison | Build established: Mutant 12075 | -8/Garrison | Garrison Relay disabled 12136 | -8/Garrison | Entered Factory 12136 | -7/Factory | Evolved 2 slots: Power x1, Propulsion x1 13057 | -7/Factory | Fabricated Mic. Nuclear Core (x2) 13095 | -7/Factory | Cargo convoy interrupted 13145 | -7/Factory | Destroyed 8 combat bots 13179 | -7/Factory | Lost 9 parts (2p4n2u1w) 13819 | -7/Factory | Identified exit to Garrison 13831 | -7/Factory | Entered Garrison 14164 | -7/Garrison | Found embedded Infiltrators 14262 | -7/Garrison | Triggered checkpoint 14312 | -7/Garrison | Build established: Scavenger-Mutant 14333 | -7/Garrison | Learned Factory security intel 14482 | -7/Garrison | Discovered new exit (range 5) 14539 | -7/Garrison | Triggered checkpoint 14584 | -7/Garrison | Garrison Relay disabled 14602 | -7/Garrison | Garrison Relay disabled 14794 | -7/Garrison | Expanded RIF knowledge: Code Merge 14827 | -7/Garrison | Triggered checkpoint 14900 | -7/Garrison | Discovered new exit (range 14) 15047 | -7/Garrison | Entered Factory 15047 | -7/Factory | Accompanied by 2 allies 15134 | -7/Factory | Build established: Scavenger-Tank 15323 | -7/Factory | Lost 3 allies 15447 | -7/Factory | First assault squad dispatched 15604 | -7/Factory | Identified exit to Garrison 15604 | -7/Factory | Entered Garrison 15696 | -7/Garrison | Triggered checkpoint 15736 | -7/Garrison | Garrison Relay disabled 15768 | -7/Garrison | P-60 Hacker assimilated allied Commando 4b 15888 | -7/Garrison | Triggered checkpoint 15978 | -7/Garrison | Triggered checkpoint 16029 | -7/Garrison | Garrison Relay disabled 16128 | -7/Garrison | Triggered checkpoint 16197 | -7/Garrison | Garrison Relay disabled 16384 | -7/Garrison | Discovered new exit (range 3) 16476 | -7/Garrison | Found embedded Infiltrators 16585 | -7/Garrison | Triggered checkpoint 16706 | -7/Garrison | Triggered checkpoint 16837 | -7/Garrison | Build established: Bothacker-Mutant 16854 | -7/Garrison | Triggered checkpoint 16911 | -7/Garrison | Garrison Relay disabled 16937 | -7/Garrison | Rescued a captive Derelict 17293 | -7/Garrison | Discovered new exit (range 14) 17342 | -7/Garrison | Lost 3 allies 17875 | -7/Garrison | Build established: Scavenger-Mutant 17984 | -7/Garrison | Triggered checkpoint 18110 | -7/Garrison | Triggered checkpoint 18239 | -7/Garrison | Expanded RIF knowledge: Signal Jamming 18556 | -7/Garrison | Entered Factory 18556 | -6/Factory | Evolved 2 slots: Utility x2 18855 | -6/Factory | Identified exit to Garrison 19256 | -6/Factory | First assault squad dispatched 19343 | -6/Factory | Build established: Bothacker-Mutant 19521 | -6/Factory | Entered Garrison 19577 | -6/Garrison | Triggered checkpoint 19799 | -6/Garrison | Expanded RIF knowledge: Patrol Navigation 19834 | -6/Garrison | Garrison Relay disabled 20437 | -6/Garrison | Triggered checkpoint 20977 | -6/Garrison | Build established: Scavenger-Mutant 21061 | -6/Garrison | Discovered new exit (range 10) 21273 | -6/Garrison | Triggered checkpoint 21568 | -6/Garrison | Build established: Scavenger-Gunner 21626 | -6/Garrison | Triggered checkpoint 21789 | -6/Garrison | Discovered new exit (range 11) 22061 | -6/Garrison | Triggered checkpoint 22100 | -6/Garrison | Garrison Relay disabled 22263 | -6/Garrison | Triggered checkpoint 22351 | -6/Garrison | Expanded RIF knowledge: Robot Detection 22410 | -6/Garrison | Build established: Bothacker-Mutant 22701 | -6/Garrison | Entered Factory 22701 | -5/Factory | Evolved 2 slots: Propulsion x1, Utility x1 22854 | -5/Factory | Identified exit to Garrison 23001 | -5/Factory | First assault squad dispatched 23104 | -5/Factory | Entered Garrison 23120 | -5/Garrison | Build established: Scavenger-Mutant 23200 | -5/Garrison | Triggered checkpoint 23342 | -5/Garrison | Spotted Striker 23342 | -5/Garrison | Spotted Striker 23363 | -5/Garrison | Destroyed Striker 23395 | -5/Garrison | Destroyed Striker 23443 | -5/Garrison | Garrison Relay disabled 23714 | -5/Garrison | Triggered checkpoint 23797 | -5/Garrison | Triggered checkpoint 23838 | -5/Garrison | Lost 3 parts (2n1u) 24023 | -5/Garrison | Build established: Botlord-Gunner 24328 | -5/Garrison | Lost 3 parts (1p1u1w) 24431 | -5/Garrison | Learned Factory security intel 24439 | -5/Garrison | Discovered new exit (range 13) 24532 | -5/Garrison | Triggered checkpoint 24617 | -5/Garrison | Garrison Relay disabled 25058 | -5/Garrison | Triggered checkpoint 25260 | -5/Garrison | Discovered new exit (range 3) 25565 | -5/Garrison | Build established: Scavenger-Mutant 25655 | -5/Garrison | Spotted B-75 Beast 25659 | -5/Garrison | Assimilated Beast 6a with formatsys_high 25681 | -5/Garrison | Found Hvy. Reflective Plating 25697 | -5/Garrison | Rewired B-75 Beast 25721 | -5/Garrison | Rewired B-75 Beast 25996 | -5/Garrison | Discovered new exit (range 7) 26136 | -5/Garrison | Triggered checkpoint 26341 | -5/Garrison | Expanded RIF knowledge: Autoassimilate 26406 | -5/Garrison | Garrison Relay disabled 26676 | -5/Garrison | Entered Factory 26676 | -4/Factory | Accompanied by 3 allies 26676 | -4/Factory | Evolved 2 slots: Utility x2 26965 | -4/Factory | Found Prototype Processor 26966 | -4/Factory | Identified Exp. Signal Interpreter 26972 | -4/Factory | Found Exp. Signal Interpreter 27101 | -4/Factory | Found Prototype Launcher 27101 | -4/Factory | Identified Tesla Bomb Launcher 27176 | -4/Factory | First assault squad dispatched 27240 | -4/Factory | Build established: Scavenger-Gunner 27275 | -4/Factory | Destroyed Beast 6b 27306 | -4/Factory | Lost 4 allies 27637 | -4/Factory | Build established: Scavenger-Mutant 27891 | -4/Factory | High security lockdown imminent 27918 | -4/Factory | System corruption reached 10% 27938 | -4/Factory | Destroyed 11 combat bots 27971 | -4/Factory | High security lockdown engaged 28107 | -4/Factory | Lost 7 parts (2n4u1w) 28266 | -4/Factory | Discovered new exit (range 8) 28332 | -4/Factory | Entered Upper Caves 28360 | -4/Upper Caves | Lost 6 parts (1p2n1u2w) 28618 | -4/Upper Caves | Build established: Scavenger-Gunner 28660 | -4/Upper Caves | Learned Research terminal intel 29185 | -4/Upper Caves | Learned 4 Research zone layouts 29834 | -4/Upper Caves | Build established: Gunner 30848 | -4/Upper Caves | Lost 7 parts (2p1n2u2w) 31803 | -4/Upper Caves | Build established: Scavenger-Gunner 33272 | -4/Upper Caves | Discovered new exit (range 13) 33434 | -4/Upper Caves | Entered another Upper Caves area 33488 | -4/Upper Caves | Lost 5 parts (1p2n2u) 33939 | -4/Upper Caves | Learned location of 1 exit from Research 33978 | -4/Upper Caves | Discovered new exit (range 5) 34009 | -4/Upper Caves | Entered Research 34009 | -3/Research | Evolved 2 slots: Propulsion x1, Utility x1 34010 | -3/Research | Identified exit to Research 34012 | -3/Research | Loaded intel: 22 terminal locations 34127 | -3/Research | Identified exit to DSF 34364 | -3/Research | Build established: Scavenger-Mutant 34738 | -3/Research | Entered another Research area 34738 | -2/Research | Evolved 2 slots: Utility x2 34766 | -2/Research | Lost 6 parts (4n2u) 35119 | -2/Research | Core integrity fell below 50% 35146 | -2/Research | Lost 24 parts (3p4n10u7w) 35222 | -2/Research | System corruption reached 10% 35261 | -2/Research | Core integrity fell below 20% 35283 | -2/Research | Lost 10 parts (1p4n3u2w) 35299 | -2/Research | Destroyed by P-80 Master with Gamma Rifle Last Messages --------------- 35218_ Com. Wheel destroyed. 35226_ Destroyed Gamma Rifle. 35228_ P-80 Master destroyed. 35235_ System corrupted: Energy discharge (-55). 35240_ Adv. Heat Sink destroyed. 35240_ Lgt. Quantum Reactor destroyed. 35243_ Imp. Diametric Drive destroyed. 35249_ Plasma Lance destroyed. 35251_ WY8E%XR4<>O>G QRS/AO#NQU,R#S&J/G : 35252_ Med. Storage Unit destroyed. 35267_ System corrupted: Heat flow error (+147). 35274_ ALERT: Security rotation in progress. 35278_ Door malfunctions. 35284_ =T2SUKEHW=LNMMCQ7|L < 35284_ Med. Storage Unit destroyed. 35289_ K-01 Serf cleans the Terminal. 35291_ Acquired Myomer Leg. 35292_ R-10 Processor collects Phase Gun. 35293_ K-01 Serf cleans the Terminal. 35299_ System corrupted: Heat flow error (+278). Map ----- +----------------------------------------------------+ | ????????###########+####????????### """ ? ? | | ????????# #?????####"" """ | | ????????# ##???## # | | ????????# ############ | | ????????# # """" + !!! | | ????????#######" ## # ""Y"" ###+#######+# ? | | ??????????????#"T## # # =%= #???? | | ???????????######## # # +???? | | ???????????# / # % #???? | | ???????????# # ! # #???? | | ???????????# # ! # """ """ #???? | | ???????????# # != x# """S""" #???? | | ???????????# #########+#############???? | | ???????????# #???????# ?? | | ???????????# ######### ########????????? | | ???????????# !!##+#######?????????? | | ???????????# p ! !# ] #?????????? | | ???????????# ^ ^ #% #?????????? | | ???????????# ^^ [[ #%! #?????????? | | ???????? [ # % #?????????? | | ???????? # k ##????????? | | ???????? #%% ## #??????? | | ???????? !! R%%! % +% #??????? | | ????????? ! # ## #??????? | | ????????? # ##?#??????? | | ?????????? @ ###########????????? | | ??????????########## =! #?????##?#?????????? | | ???????????????????# ]! #??????????????????? | | ?????????????????#"" #??????????????????? | | ?????????????????#""k #??????????????????? | | ?????????????????#"" #??????????????????? | | ?????????????????#T #??????????????????? | | ?????????????????#"" """ #??????????????????? | | ?????????????????#"" """" #??????????????????? | | ??????????????????""k """" #??????????????????? | | ??????????????????## """ #??????????????????? | | ??????????????????? ???? +??????????????????? | | ??????????????????? ???? #??????????????????? | | ??????????????????# ????? #??????????????????? | | ????????????????????? ?????"""???????????????????? | | ?????????????????????????????????????????????????? | | ?????????????????????????????????????????????????? | | ?????????????????????????????????????????????????? | | ?????????????????????????????????????????????????? | | ?????????????????????????????????????????????????? | | ?????????????????????????????????????????????????? | | ?????????????????????????????????????????????????? | | ?????????????????????????????????????????????????? | | ?????????????????????????????????????????????????? | | ?????????????????????????????????????????????????? | +----------------------------------------------------+ Best States ------------- Heat Dissipation 97 Energy Generation 39 Energy Capacity 775 Matter Stores 300 Matter Capacity 300 Sight Range 20 Robot Scan Range 16 Terrain Scan Density 10 Jamming Range 16 EM Shielding 3 Armor Coverage 825 Resistance: TH 25 Resistance: EM 25 Core Shielding 30 Power Shielding 33 Propulsion Shielding 33 Weapon Shielding 66 Point Defense Rating 80 Weapon Cycling 20 Phase Shifting 15 Evasion (%) 55 Targeting Accuracy 8 Core Analysis 6 Armor Integrity Analysis 30 Recoil Reduction 5 Particle Charging 15 Offensive Hacking 28 Defensive Hacking 10 Relay Coupler Types 2 Relay Coupler Value 65 Item Schematics ----------------- Arm. Treads | -8/Materials | Scanalyzed Imp. Heat Sink | -8/Materials | Scanalyzed Imp. Heavy Treads | -6/Factory | Scanalyzed Robot Schematics ------------------ None Fabricated ------------ Mic. Nuclear Core | x2 | -7/Factory | Preloaded Repaired ---------- Lgt. Armor Plating | 55% | -8/Materials Alien Tech Used ----------------- None Achievements -------------- Factory Defaults Challenges ------------ None Game ------ Seed SwarmColdSword Manual? 0 Play Time 05:48:58 Cumulative 126.9 hours Start 2025.09.10 @ 12:23:37 End 2025.09.15 @ 11:34:26 Sessions 13 Manual Loads 0 Difficulty Rogue Special Mode None Game No. 65 Rogue 61 Adventurer 1 Explorer 3 Win Type - Total 4 Types 3/1/0/0/0/0/0/0/0/0 Lore% 57 Gallery% 60 Achievement% 57 Wizard Run 0 Options --------- Layout 2 ASCII 0 Keyboard 1 Movement Numpad Keybinds 0 Fullscreen 1 Font 32/SmallcapsGlow Map View 50x44 Zoom Use 0% Tactical HUD 1 Map Filters NONE Filters NONE Steam 1 RUN: 7ee6c88a-15bd-41cb-af67-036c7fd8cebc